fUSD/lending_fUSD_20260614
["ID","MTS","AMOUNT","RATE_DAILY","PERIOD"]
[425064309,1781447583000,-298.8808056,0.00032848,120]
[425064308,1781447583000,-440.65,0.00032744,2]
[425064304,1781447583000,-1401.83,0.00032602,8]
[425064357,1781447583000,-648.16,0.00032876,8]
[425064313,1781447583000,-569.09,0.00032876,8]
[425064311,1781447583000,-1928.24,0.00032876,8]
[425064322,1781447583000,-558.29,0.00032876,8]
[425064314,1781447583000,-1290.4,0.00032876,8]
[425064320,1781447583000,-512.97,0.00032876,8]
[425064312,1781447583000,-2287.07,0.00032876,8]
[425064315,1781447583000,-706.5,0.00032876,8]
[425064316,1781447583000,-957.59,0.00032876,8]
[425064318,1781447583000,-500.0,0.00032876,8]
[425064317,1781447583000,-510.86,0.00032876,8]
[425064321,1781447583000,-630.1,0.00032876,8]
[425064327,1781447583000,-552.72,0.00032876,8]
[425064330,1781447583000,-685.22,0.00032876,8]
[425064328,1781447583000,-542.62,0.00032876,8]
[425064332,1781447583000,-736.33,0.00032876,8]
[425064323,1781447583000,-925.25,0.00032876,8]
[425064319,1781447583000,-1013.37,0.00032876,8]
[425064359,1781447583000,-682.21,0.00032876,8]
[425064346,1781447583000,-1285.32,0.00032876,8]
[425064364,1781447583000,-500.0,0.00032876,8]
[425064387,1781447583000,-500.0,0.00032876,120]
[425064388,1781447583000,-500.0,0.00032876,120]
[425064394,1781447583000,-500.0,0.00032876,120]
[425064404,1781447583000,-508.13,0.00032876,8]
[425064395,1781447583000,-500.0,0.00032876,120]
[425064397,1781447583000,-500.0,0.00032876,120]
[425064396,1781447583000,-500.0,0.00032876,120]
[425064393,1781447583000,-500.0,0.00032876,120]
[425064398,1781447583000,-500.0,0.00032876,120]
[425064400,1781447583000,-500.0,0.00032876,120]
[425064402,1781447583000,-1207.41,0.00032876,8]
[425064399,1781447583000,-500.0,0.00032876,120]
[425064385,1781447583000,-500.0,0.00032876,120]
[425064403,1781447583000,-766.55,0.00032876,8]
[425064405,1781447583000,-586.53,0.00032876,8]
[425064406,1781447583000,-1099.99,0.00032876,8]
[425064412,1781447583000,-520.02,0.00032876,8]
[425064408,1781447583000,-671.88,0.00032876,8]
[425064410,1781447583000,-1195.63,0.00032876,8]
[425064411,1781447583000,-1398.15,0.00032876,8]
[425064413,1781447583000,-841.95,0.00032876,8]
[425064409,1781447583000,-1425.15,0.00032876,8]
[425064414,1781447583000,-500.0,0.00032876,8]
[425064415,1781447583000,-554.77,0.00032876,8]
[425064366,1781447583000,-1189.57,0.00032876,8]
[425064416,1781447583000,-1132.03,0.00032876,8]
[425064407,1781447583000,-899.88,0.00032876,8]
[425064391,1781447583000,-500.0,0.00032876,120]
[425064401,1781447583000,-773.85,0.00032876,8]
[425064392,1781447583000,-500.0,0.00032876,120]
[425064361,1781447583000,-1400.43,0.00032876,8]
[425064381,1781447583000,-500.0,0.00032876,120]
[425064360,1781447583000,-546.49,0.00032876,8]
[425064365,1781447583000,-608.15,0.00032876,8]
[425064367,1781447583000,-1222.28,0.00032876,8]
[425064362,1781447583000,-1274.35,0.00032876,8]
[425064363,1781447583000,-688.19,0.00032876,8]
[425064368,1781447583000,-1452.09,0.00032876,8]
[425064358,1781447583000,-800.55,0.00032876,8]
[425064372,1781447583000,-1281.05,0.00032876,8]
[425064371,1781447583000,-500.0,0.00032876,8]
[425064373,1781447583000,-532.02,0.00032876,8]
[425064374,1781447583000,-500.0,0.00032876,8]
[425064370,1781447583000,-672.85,0.00032876,8]
[425064375,1781447583000,-1604.32,0.00032876,8]
[425064390,1781447583000,-500.0,0.00032876,120]
[425064379,1781447583000,-500.0,0.00032876,120]
[425064383,1781447583000,-500.0,0.00032876,120]
[425064386,1781447583000,-1037.86,0.00032876,8]
[425064382,1781447583000,-500.0,0.00032876,120]
[425064384,1781447583000,-500.0,0.00032876,120]
[425064389,1781447583000,-500.0,0.00032876,120]
[425064378,1781447583000,-1047.49,0.00032876,8]
[425064376,1781447583000,-1015.25,0.00032876,8]
[425064369,1781447583000,-1053.08,0.00032876,8]
[425064377,1781447583000,-664.01,0.00032876,8]
[425064380,1781447583000,-500.0,0.00032876,120]
[425064455,1781447584000,-1046.11,0.00032876,8]
[425064456,1781447584000,-892.45,0.00032876,8]
[425064464,1781447584000,-500.0,0.00032876,8]
[425064453,1781447584000,-533.2,0.00032876,8]
[425064462,1781447584000,-536.09,0.00032876,8]
[425064447,1781447584000,-872.27,0.00032876,8]
[425064459,1781447584000,-500.0,0.00032876,8]
[425064444,1781447584000,-1746.88,0.00032876,8]
[425064446,1781447584000,-784.28,0.00032876,8]
[425064445,1781447584000,-723.54,0.00032876,8]
[425064449,1781447584000,-559.91,0.00032876,8]
[425064461,1781447584000,-1199.94,0.00032876,8]
[425064457,1781447584000,-566.53,0.00032876,8]
[425064466,1781447584000,-1992.83,0.00032876,8]
[425064460,1781447584000,-529.52,0.00032876,8]
[425064458,1781447584000,-714.38,0.00032876,8]
[425064454,1781447584000,-715.69,0.00032876,8]
[425064474,1781447584000,-1019.53,0.00032876,8]
[425064465,1781447584000,-1220.66,0.00032876,8]
[425064477,1781447584000,-606.2,0.00032876,8]
[425064467,1781447584000,-1285.7,0.00032876,8]
[425064475,1781447584000,-551.10297073,0.00032876,8]
[425064468,1781447584000,-694.6,0.00032876,8]
[425064476,1781447584000,-770.14,0.00032876,8]
[425064469,1781447584000,-500.0,0.00032876,8]
[425064448,1781447584000,-500.0,0.00032876,8]
[425064463,1781447584000,-611.86,0.00032876,8]
[425064443,1781447584000,-689.06,0.00032876,8]
[425064418,1781447584000,-638.31,0.00032876,8]
[425064451,1781447584000,-623.88,0.00032876,8]
[425064470,1781447584000,-577.76,0.00032876,8]
[425064417,1781447584000,-607.25,0.00032876,8]
[425064419,1781447584000,-510.28,0.00032876,8]
[425064420,1781447584000,-806.88,0.00032876,8]
[425064421,1781447584000,-500.0,0.00032876,8]
[425064423,1781447584000,-544.6,0.00032876,8]
[425064422,1781447584000,-853.99,0.00032876,8]
[425064424,1781447584000,-866.85,0.00032876,8]
[425064425,1781447584000,-2153.84,0.00032876,8]
[425064427,1781447584000,-556.37,0.00032876,8]
[425064428,1781447584000,-534.02,0.00032876,8]
[425064426,1781447584000,-815.68,0.00032876,8]
[425064433,1781447584000,-301.32573567,0.00032876,8]
[425064429,1781447584000,-790.09,0.00032876,8]
[425064432,1781447584000,-648.3,0.00032876,8]
[425064430,1781447584000,-500.0,0.00032876,8]
[425064438,1781447584000,-597.42,0.00032876,8]
[425064434,1781447584000,-500.0,0.00032876,8]
[425064435,1781447584000,-500.0,0.00032876,8]
[425064437,1781447584000,-543.72,0.00032876,8]
[425064436,1781447584000,-1022.53,0.00032876,8]
[425064431,1781447584000,-520.69,0.00032876,8]
[425064439,1781447584000,-1193.0,0.00032876,8]
[425064440,1781447584000,-573.76,0.00032876,8]
[425064442,1781447584000,-500.0,0.00032876,8]
[425064441,1781447584000,-1254.7,0.00032876,8]
[425064450,1781447584000,-639.31,0.00032876,8]
[425064452,1781447584000,-504.6,0.00032876,8]
[425064471,1781447584000,-694.97,0.00032876,8]
[425064517,1781447584000,-702.19,0.00032876,8]
[425064472,1781447584000,-638.67,0.00032876,8]
[425064509,1781447584000,-657.3,0.00032876,8]
[425064513,1781447584000,-675.87,0.00032876,8]
[425064511,1781447584000,-663.09,0.00032876,8]
[425064506,1781447584000,-597.59,0.00032876,8]
[425064510,1781447584000,-1514.46,0.00032876,8]
[425064512,1781447584000,-944.34,0.00032876,8]
[425064516,1781447584000,-642.31,0.00032876,8]
[425064526,1781447584000,-657.48,0.00032876,8]
[425064520,1781447584000,-500.0,0.00032876,8]
[425064519,1781447584000,-631.21,0.00032876,8]
[425064515,1781447584000,-881.04,0.00032876,8]
[425064523,1781447584000,-315.07787223,0.00032876,8]
[425064514,1781447584000,-1042.52,0.00032876,8]
[425064521,1781447584000,-729.66,0.00032876,8]
[425064525,1781447584000,-532.23,0.00032876,8]
[425064522,1781447584000,-815.38,0.00032876,8]
[425064535,1781447584000,-616.02,0.00032876,8]
[425064527,1781447584000,-564.84,0.00032876,8]
[425064528,1781447584000,-648.15,0.00032876,8]
[425064529,1781447584000,-835.21,0.00032876,8]
[425064531,1781447584000,-500.0,0.00032876,8]
[425064530,1781447584000,-2000.0,0.00032876,2]
[425064532,1781447584000,-880.78,0.00032876,8]
[425064533,1781447584000,-341.06202165,0.00032876,8]
[425064534,1781447584000,-500.0,0.00032876,8]
[425064473,1781447584000,-681.48,0.00032876,8]
[425064524,1781447584000,-1150.58,0.00032876,8]
[425064508,1781447584000,-1068.73,0.00032876,8]
[425064518,1781447584000,-845.18,0.00032876,8]
[425064505,1781447584000,-856.87,0.00032876,8]
[425064507,1781447584000,-565.44,0.00032876,8]
[425064480,1781447584000,-500.0,0.00032876,8]
[425064485,1781447584000,-1214.87,0.00032876,8]
[425064483,1781447584000,-752.56,0.00032876,8]
[425064486,1781447584000,-712.15,0.00032876,8]
[425064484,1781447584000,-1362.07,0.00032876,8]
[425064489,1781447584000,-710.6,0.00032876,8]
[425064481,1781447584000,-1086.15,0.00032876,8]
[425064482,1781447584000,-1794.38,0.00032876,8]
[425064488,1781447584000,-500.0,0.00032876,8]
[425064487,1781447584000,-658.12,0.00032876,8]
[425064479,1781447584000,-648.66,0.00032876,8]
[425064491,1781447584000,-932.78,0.00032876,8]
[425064492,1781447584000,-1530.48,0.00032876,8]
[425064478,1781447584000,-1236.08,0.00032876,8]
[425064504,1781447584000,-519.48,0.00032876,8]
[425064490,1781447584000,-556.38,0.00032876,8]
[425064503,1781447584000,-1038.13,0.00032876,8]
[425064502,1781447584000,-1016.47,0.00032876,8]
[425064496,1781447584000,-987.41,0.00032876,8]
[425064498,1781447584000,-500.0,0.00032876,8]
[425064495,1781447584000,-578.24,0.00032876,8]
[425064494,1781447584000,-1329.36,0.00032876,8]
[425064500,1781447584000,-579.71,0.00032876,8]
[425064499,1781447584000,-1199.11,0.00032876,8]
[425064501,1781447584000,-500.0,0.00032876,8]
[425064493,1781447584000,-836.13,0.00032876,8]
[425064497,1781447584000,-747.07,0.00032876,8]
[425064571,1781447585000,-623.6,0.00032876,8]
[425064578,1781447585000,-1675.9,0.00032876,8]
[425064594,1781447585000,-2844.47124739,0.00032876,120]
[425064575,1781447585000,-500.0,0.00032876,8]
[425064572,1781447585000,-2017.64,0.00032876,8]
[425064565,1781447585000,-502.0,0.00032876,8]
[425064567,1781447585000,-682.04,0.00032876,8]
[425064570,1781447585000,-580.54,0.00032876,8]
[425064566,1781447585000,-2238.28,0.00032876,8]
[425064569,1781447585000,-2663.08,0.00032876,8]
[425064583,1781447585000,-500.0,0.00032876,8]
[425064568,1781447585000,-966.37,0.00032876,8]
[425064582,1781447585000,-5751.63,0.00032876,8]
[425064586,1781447585000,-1056.35,0.00032876,8]
[425064585,1781447585000,-546.64,0.00032876,8]
[425064579,1781447585000,-703.84,0.00032876,8]
[425064576,1781447585000,-842.22,0.00032876,8]
[425064581,1781447585000,-1427.79,0.00032876,8]
[425064580,1781447585000,-500.0,0.00032876,8]
[425064588,1781447585000,-10759.52,0.00032876,8]
[425064590,1781447585000,-679.83,0.00032876,8]
[425064589,1781447585000,-1143.85,0.00032876,8]
[425064587,1781447585000,-940.15,0.00032876,8]
[425064593,1781447585000,-500.0,0.00032876,8]
[425064592,1781447585000,-825.79,0.00032876,8]
[425064591,1781447585000,-1116.26,0.00032876,8]
[425064584,1781447585000,-877.23,0.00032876,8]
[425064564,1781447585000,-702.01,0.00032876,8]
[425064536,1781447585000,-3014.18,0.00032876,8]
[425064574,1781447585000,-1157.66,0.00032876,8]
[425064537,1781447585000,-500.0,0.00032876,8]
[425064538,1781447585000,-869.12,0.00032876,8]
[425064550,1781447585000,-553.44,0.00032876,8]
[425064539,1781447585000,-992.68,0.00032876,8]
[425064549,1781447585000,-743.01,0.00032876,8]
[425064540,1781447585000,-1461.98,0.00032876,8]
[425064543,1781447585000,-1539.52,0.00032876,8]
[425064544,1781447585000,-870.51,0.00032876,8]
[425064541,1781447585000,-3250.13,0.00032876,8]
[425064547,1781447585000,-540.29,0.00032876,8]
[425064546,1781447585000,-500.0,0.00032876,8]
[425064548,1781447585000,-1661.43,0.00032876,8]
[425064542,1781447585000,-500.0,0.00032876,8]
[425064545,1781447585000,-692.78,0.00032876,8]
[425064556,1781447585000,-2667.75,0.00032876,8]
[425064551,1781447585000,-920.43,0.00032876,8]
[425064554,1781447585000,-605.61,0.00032876,8]
[425064558,1781447585000,-1701.25,0.00032876,8]
[425064559,1781447585000,-592.38,0.00032876,8]
[425064552,1781447585000,-509.71,0.00032876,8]
[425064555,1781447585000,-698.01,0.00032876,8]
[425064560,1781447585000,-1169.04,0.00032876,8]
[425064557,1781447585000,-674.5,0.00032876,8]
[425064553,1781447585000,-662.85,0.00032876,8]
[425064561,1781447585000,-558.94,0.00032876,8]
[425064563,1781447585000,-720.7,0.00032876,8]
[425064573,1781447585000,-550.82,0.00032876,8]
[425064562,1781447585000,-605.88,0.00032876,8]
[425064597,1781447585000,-1082.98,0.00032876,8]
[425064577,1781447585000,-543.63,0.00032876,8]
[425064595,1781447585000,-626.04,0.00032876,8]
[425064635,1781447585000,-25282.9,0.00032876,8]
[425064631,1781447585000,-500.0,0.00032876,8]
[425064632,1781447585000,-563.46,0.00032876,8]
[425064636,1781447585000,-677.78,0.00032876,8]
[425064625,1781447585000,-1749.66,0.00032876,8]
[425064634,1781447585000,-500.0,0.00032876,8]
[425064633,1781447585000,-11664.09,0.00032876,8]
[425064639,1781447585000,-804.59558205,0.00032876,2]
[425064647,1781447585000,-1343.56,0.00032876,8]
[425064642,1781447585000,-1296.71,0.00032876,8]
[425064648,1781447585000,-1463.18,0.00032876,8]
[425064640,1781447585000,-2026.58,0.00032876,8]
[425064638,1781447585000,-804.59558205,0.00032876,2]
[425064645,1781447585000,-1801.16,0.00032876,8]
[425064637,1781447585000,-505.16,0.00032876,8]
[425064641,1781447585000,-589.03,0.00032876,8]
[425064644,1781447585000,-2890.54,0.00032876,8]
[425064643,1781447585000,-557.28,0.00032876,8]
[425064646,1781447585000,-1828.15,0.00032876,8]
[425064652,1781447585000,-577.98,0.00032876,8]
[425064655,1781447585000,-5973.16,0.00032876,8]
[425064650,1781447585000,-595.31,0.00032876,8]
[425064649,1781447585000,-1214.13,0.00032876,8]
[425064651,1781447585000,-1866.64,0.00032876,8]
[425064656,1781447585000,-763.45,0.00032876,8]
[425064654,1781447585000,-500.0,0.00032876,8]
[425064596,1781447585000,-704.65,0.00032876,8]
[425064627,1781447585000,-1407.31,0.00032876,8]
[425064626,1781447585000,-1000.0,0.00032876,8]
[425064653,1781447585000,-1413.1,0.00032876,8]
[425064629,1781447585000,-1023.6,0.00032876,8]
[425064598,1781447585000,-500.0,0.00032876,2]
[425064602,1781447585000,-4182.59,0.00032876,8]
[425064605,1781447585000,-2931.64,0.00032876,8]
[425064600,1781447585000,-599.17944185,0.00032876,2]
[425064609,1781447585000,-742.57,0.00032876,8]
[425064610,1781447585000,-518.74,0.00032876,8]
[425064601,1781447585000,-702.05,0.00032876,8]
[425064599,1781447585000,-500.0,0.00032876,2]
[425064606,1781447585000,-506.05289162,0.00032876,8]
[425064603,1781447585000,-3026.85,0.00032876,8]
[425064604,1781447585000,-293.69301564,0.00032876,8]
[425064607,1781447585000,-528.8,0.00032876,8]
[425064622,1781447585000,-636.66,0.00032876,8]
[425064608,1781447585000,-3706.06,0.00032876,8]
[425064613,1781447585000,-699.64833222,0.00032876,2]
[425064628,1781447585000,-508.2,0.00032876,8]
[425064612,1781447585000,-1682.54,0.00032876,8]
[425064624,1781447585000,-4001.43,0.00032876,8]
[425064621,1781447585000,-540.32,0.00032876,8]
[425064616,1781447585000,-610.83,0.00032876,8]
[425064620,1781447585000,-528.7,0.00032876,8]
[425064618,1781447585000,-699.64833222,0.00032876,2]
[425064630,1781447585000,-1278.35,0.00032876,8]
[425064615,1781447585000,-699.64833222,0.00032876,2]
[425064617,1781447585000,-699.64833222,0.00032876,2]
[425064614,1781447585000,-699.64833222,0.00032876,2]
[425064623,1781447585000,-1109.22,0.00032876,8]
[425064611,1781447585000,-658.84,0.00032876,8]
[425064619,1781447585000,-1282.28,0.00032876,8]
[425064704,1781447586000,-1401.83,0.00032876,8]
[425064706,1781447586000,-155.196349,0.00032877,7]
[425064705,1781447586000,-1434.77,0.00032876,8]
[425064696,1781447586000,-1133.48,0.00032876,8]
[425064689,1781447586000,-577.21,0.00032876,8]
[425064683,1781447586000,-707.22,0.00032876,8]
[425064694,1781447586000,-1609.77,0.00032876,8]
[425064688,1781447586000,-1648.13,0.00032876,8]
[425064691,1781447586000,-628.37562501,0.00032876,8]
[425064699,1781447586000,-741.37,0.00032876,8]
[425064693,1781447586000,-2104.15,0.00032876,8]
[425064686,1781447586000,-640.65,0.00032876,8]
[425064710,1781447586000,-154.448112,0.00032877,7]
[425064697,1781447586000,-922.21,0.00032876,8]
[425064703,1781447586000,-565.02563812,0.00032876,8]
[425064695,1781447586000,-921.05,0.00032876,8]
[425064702,1781447586000,-500.0,0.00032876,8]
[425064700,1781447586000,-1698.66,0.00032876,8]
[425064701,1781447586000,-5871.97,0.00032876,8]
[425064708,1781447586000,-151.0,0.00032877,7]
[425064707,1781447586000,-151.315162,0.00032877,7]
[425064715,1781447586000,-151.0,0.00032877,7]
[425064709,1781447586000,-151.0,0.00032877,7]
[425064712,1781447586000,-151.0,0.00032877,7]
[425064711,1781447586000,-151.0,0.00032877,7]
[425064692,1781447586000,-800.7,0.00032876,8]
[425064698,1781447586000,-837.18,0.00032876,8]
[425064687,1781447586000,-955.12,0.00032876,8]
[425064666,1781447586000,-2020.73,0.00032876,8]
[425064684,1781447586000,-1599.83,0.00032876,8]
[425064713,1781447586000,-151.0,0.00032877,7]
[425064658,1781447586000,-500.0,0.00032876,8]
[425064659,1781447586000,-3655.13,0.00032876,8]
[425064657,1781447586000,-1090.91,0.00032876,8]
[425064660,1781447586000,-3216.2,0.00032876,8]
[425064672,1781447586000,-839.66,0.00032876,8]
[425064662,1781447586000,-1440.23,0.00032876,8]
[425064668,1781447586000,-1357.49,0.00032876,8]
[425064664,1781447586000,-1108.18,0.00032876,8]
[425064667,1781447586000,-1129.02,0.00032876,2]
[425064661,1781447586000,-2562.95,0.00032876,8]
[425064665,1781447586000,-605.58,0.00032876,8]
[425064690,1781447586000,-861.57,0.00032876,8]
[425064663,1781447586000,-500.0,0.00032876,8]
[425064670,1781447586000,-476.62853281,0.00032876,8]
[425064673,1781447586000,-707.83,0.00032876,8]
[425064674,1781447586000,-900.28,0.00032876,8]
[425064676,1781447586000,-12728.02,0.00032876,8]
[425064675,1781447586000,-822.75,0.00032876,8]
[425064677,1781447586000,-2061.13,0.00032876,8]
[425064681,1781447586000,-500.0,0.00032876,8]
[425064678,1781447586000,-1297.07,0.00032876,8]
[425064679,1781447586000,-649.93,0.00032876,8]
[425064680,1781447586000,-1326.3,0.00032876,8]
[425064682,1781447586000,-1057.08,0.00032876,8]
[425064685,1781447586000,-5289.14,0.00032876,8]
[425064671,1781447586000,-529.83,0.00032876,8]
[425064717,1781447586000,-151.0,0.00032877,7]
[425064669,1781447586000,-878.66,0.00032876,8]
[425064714,1781447586000,-151.0,0.00032877,7]
[425064747,1781447586000,-330.61547,0.00032877,7]
[425064745,1781447586000,-330.61547,0.00032877,7]
[425064748,1781447586000,-330.61547,0.00032877,7]
[425064755,1781447586000,-330.61547,0.00032877,7]
[425064751,1781447586000,-330.61547,0.00032877,7]
[425064754,1781447586000,-330.61547,0.00032877,7]
[425064752,1781447586000,-330.61547,0.00032877,7]
[425064750,1781447586000,-330.61547,0.00032877,7]
[425064753,1781447586000,-330.61547,0.00032877,7]
[425064757,1781447586000,-330.61547,0.00032877,7]
[425064758,1781447586000,-330.61547,0.00032877,7]
[425064768,1781447586000,-151.0,0.00032877,7]
[425064749,1781447586000,-330.61547,0.00032877,7]
[425064762,1781447586000,-330.61547,0.00032877,7]
[425064774,1781447586000,-175.723379,0.00032877,7]
[425064759,1781447586000,-330.61547,0.00032877,7]
[425064760,1781447586000,-330.61547,0.00032877,7]
[425064763,1781447586000,-330.615463,0.00032877,7]
[425064761,1781447586000,-330.61547,0.00032877,7]
[425064765,1781447586000,-151.0,0.00032877,2]
[425064767,1781447586000,-582.31,0.00032877,2]
[425064770,1781447586000,-151.0,0.00032877,7]
[425064769,1781447586000,-204.432227,0.00032877,7]
[425064772,1781447586000,-151.0,0.00032877,7]
[425064773,1781447586000,-240.373455,0.00032877,7]
[425064771,1781447586000,-151.0,0.00032877,7]
[425064766,1781447586000,-259.422155,0.00032877,2]
[425064756,1781447586000,-330.61547,0.00032877,7]
[425064764,1781447586000,-151.0,0.00032877,2]
[425064737,1781447586000,-1561.951232,0.00032877,7]
[425064746,1781447586000,-330.61547,0.00032877,7]
[425064716,1781447586000,-165.036676,0.00032877,7]
[425064720,1781447586000,-151.0,0.00032877,7]
[425064730,1781447586000,-1561.951232,0.00032877,7]
[425064731,1781447586000,-1561.951232,0.00032877,7]
[425064721,1781447586000,-151.0,0.00032877,7]
[425064719,1781447586000,-151.0,0.00032877,7]
[425064722,1781447586000,-189.319212,0.00032877,7]
[425064725,1781447586000,-1561.951232,0.00032877,7]
[425064723,1781447586000,-169.289257,0.00032877,7]
[425064727,1781447586000,-1561.951232,0.00032877,7]
[425064726,1781447586000,-1561.951232,0.00032877,7]
[425064728,1781447586000,-1561.951232,0.00032877,7]
[425064718,1781447586000,-151.0,0.00032877,7]
[425064729,1781447586000,-1561.951232,0.00032877,7]
[425064724,1781447586000,-1561.951232,0.00032877,7]
[425064743,1781447586000,-1561.951228,0.00032877,7]
[425064740,1781447586000,-1561.951232,0.00032877,7]
[425064733,1781447586000,-1561.951232,0.00032877,7]
[425064742,1781447586000,-1561.951232,0.00032877,7]
[425064744,1781447586000,-330.61547,0.00032877,7]
[425064739,1781447586000,-1561.951232,0.00032877,7]
[425064736,1781447586000,-1561.951232,0.00032877,7]
[425064735,1781447586000,-1561.951232,0.00032877,7]
[425064734,1781447586000,-1561.951232,0.00032877,7]
[425064732,1781447586000,-1561.951232,0.00032877,7]
[425064738,1781447586000,-1561.951232,0.00032877,7]
[425064741,1781447586000,-1561.951232,0.00032877,7]
[425064794,1781447587000,-500.0,0.00032877,2]
[425064808,1781447587000,-250.0,0.000329,2]
[425064799,1781447587000,-500.0,0.00032877,2]
[425064802,1781447587000,-343.44,0.000329,120]
[425064804,1781447587000,-250.0,0.000329,2]
[425064806,1781447587000,-250.0,0.000329,2]
[425064807,1781447587000,-250.0,0.000329,2]
[425064805,1781447587000,-250.0,0.000329,2]
[425064815,1781447587000,-426.80374489,0.00032955,2]
[425064812,1781447587000,-202.70228411,0.00032945,30]
[425064813,1781447587000,-407.0,0.00032955,2]
[425064810,1781447587000,-150.519904,0.00032929,120]
[425064809,1781447587000,-250.0,0.000329,2]
[425064814,1781447587000,-407.0,0.00032955,2]
[425064795,1781447587000,-500.0,0.00032877,2]
[425064816,1781447587000,-247.74461809,0.00032955,2]
[425064818,1781447587000,-150.0,0.00032955,2]
[425064828,1781447587000,-3696.39684795,0.00033,2]
[425064819,1781447587000,-290.91146036,0.00032955,2]
[425064817,1781447587000,-150.0,0.00032955,2]
[425064811,1781447587000,-158.44448519,0.00032945,30]
[425064796,1781447587000,-500.0,0.00032877,2]
[425064792,1781447587000,-500.0,0.00032877,2]
[425064797,1781447587000,-500.0,0.00032877,2]
[425064820,1781447587000,-500.0,0.00032955,2]
[425064775,1781447587000,-151.0,0.00032877,7]
[425064778,1781447587000,-190.401192,0.00032877,7]
[425064776,1781447587000,-351.66,0.00032877,2]
[425064779,1781447587000,-500.0,0.00032877,2]
[425064777,1781447587000,-182.886415,0.00032877,7]
[425064780,1781447587000,-500.0,0.00032877,2]
[425064782,1781447587000,-500.0,0.00032877,2]
[425064786,1781447587000,-500.0,0.00032877,2]
[425064790,1781447587000,-500.0,0.00032877,2]
[425064791,1781447587000,-500.0,0.00032877,2]
[425064787,1781447587000,-500.0,0.00032877,2]
[425064781,1781447587000,-500.0,0.00032877,2]
[425064785,1781447587000,-431.98057875,0.00032877,2]
[425064789,1781447587000,-500.0,0.00032877,2]
[425064784,1781447587000,-500.0,0.00032877,2]
[425064788,1781447587000,-500.0,0.00032877,2]
[425064793,1781447587000,-500.0,0.00032877,2]
[425064803,1781447587000,-250.0,0.000329,2]
[425064800,1781447587000,-518.93777152,0.00032877,2]
[425064801,1781447587000,-459.85794096,0.00032883,7]
[425064798,1781447587000,-500.0,0.00032877,2]
[425064783,1781447587000,-500.0,0.00032877,2]
[425064825,1781447587000,-152.0,0.00032999,5]
[425064821,1781447587000,-500.0,0.00032955,2]
[425064844,1781447587000,-152.0,0.00033028,30]
[425064848,1781447587000,-324.0,0.00033028,30]
[425064852,1781447587000,-350.0,0.00033032,30]
[425064854,1781447587000,-151.0,0.00033056,2]
[425064858,1781447587000,-150.0,0.0003308,2]
[425064853,1781447587000,-190.0,0.00033032,30]
[425064855,1781447587000,-150.66770876,0.0003308,2]
[425064856,1781447587000,-150.0,0.0003308,2]
[425064860,1781447587000,-150.0,0.0003308,2]
[425064863,1781447587000,-498.47928114,0.00033123,120]
[425064857,1781447587000,-150.0,0.0003308,2]
[425064859,1781447587000,-150.0,0.0003308,2]